[Event "Early-Titled-Tuesday-Blitz-July-09-2024"]
[Site "Chess.com"]
[Date "2024.07.09"]
[Round "3"]
[White "SahibSinghKnight"]
[Black "champ2005"]
[Result "0-1"]
[WhiteElo "2675"]
[BlackElo "3050"]
[TimeControl "180+1"]
[EndTime "8:31:02 PDT"]
[Termination "champ2005 won by resignation"]

1. e4 {[%clk 0:03:00.9]} 1... Nc6 {[%clk 0:02:51.8]} 2. Nf3 {[%clk 0:03:00]}
2... e5 {[%clk 0:02:48.4]} 3. Bb5 {[%clk 0:02:59.3]} 3... Nge7 {[%clk
0:02:34.5]} 4. O-O {[%clk 0:02:54.9]} 4... Ng6 {[%clk 0:02:33.4]} 5. c3 {[%clk
0:02:53]} 5... a6 {[%clk 0:02:29.2]} 6. Ba4 {[%clk 0:02:52.8]} 6... d5 {[%clk
0:02:29.4]} 7. exd5 {[%clk 0:02:32.8]} 7... Qxd5 {[%clk 0:02:30.3]} 8. Bb3
{[%clk 0:02:33.1]} 8... Qd3 {[%clk 0:02:29.8]} 9. Bc2 {[%clk 0:02:32.8]} 9...
Qd6 {[%clk 0:02:29.3]} 10. Re1 {[%clk 0:02:30.1]} 10... Be7 {[%clk 0:02:24.9]}
11. Na3 {[%clk 0:02:14.6]} 11... Be6 {[%clk 0:02:15]} 12. d3 {[%clk 0:01:52.6]}
12... O-O {[%clk 0:01:54.5]} 13. Nc4 {[%clk 0:01:49.5]} 13... Bxc4 {[%clk
0:01:51.3]} 14. dxc4 {[%clk 0:01:50.4]} 14... f5 {[%clk 0:01:50.5]} 15. Qxd6
{[%clk 0:01:26.7]} 15... Bxd6 {[%clk 0:01:51.4]} 16. b4 {[%clk 0:01:26.8]} 16...
e4 {[%clk 0:01:51.5]} 17. c5 {[%clk 0:01:19.3]} 17... Be7 {[%clk 0:01:44.5]} 18.
Ng5 {[%clk 0:01:11.7]} 18... Bxg5 {[%clk 0:01:35.9]} 19. Bxg5 {[%clk 0:01:11.2]}
19... h6 {[%clk 0:01:36.2]} 20. Be3 {[%clk 0:01:07.2]} 20... Nge5 {[%clk
0:01:35.4]} 21. Rad1 {[%clk 0:01:04]} 21... Kh8 {[%clk 0:01:31]} 22. Rd5 {[%clk
0:00:54.8]} 22... Rad8 {[%clk 0:01:18.2]} 23. Red1 {[%clk 0:00:54.5]} 23... Rxd5
{[%clk 0:01:18]} 24. Rxd5 {[%clk 0:00:54.3]} 24... Rd8 {[%clk 0:01:18.9]} 25.
Rxd8+ {[%clk 0:00:52.6]} 25... Nxd8 {[%clk 0:01:19.8]} 26. Bf4 {[%clk
0:00:44.1]} 26... Ndc6 {[%clk 0:01:15.6]} 27. Ba4 {[%clk 0:00:36.1]} 27... Kg8
{[%clk 0:00:41.5]} 28. Bxc6 {[%clk 0:00:35.8]} 28... Nxc6 {[%clk 0:00:42.4]} 29.
Bxc7 {[%clk 0:00:36.3]} 29... Kf7 {[%clk 0:00:43.3]} 30. a4 {[%clk 0:00:15.7]}
30... Na7 {[%clk 0:00:20.6]} 31. c4 {[%clk 0:00:13.4]} 31... Ke6 {[%clk
0:00:19.4]} 32. b5 {[%clk 0:00:12.8]} 32... axb5 {[%clk 0:00:08.3]} 33. cxb5
{[%clk 0:00:09.8]} 33... Kd5 {[%clk 0:00:08.1]} 34. c6 {[%clk 0:00:09.6]} 34...
Nxc6 {[%clk 0:00:05.2]} 35. bxc6 {[%clk 0:00:09.6]} 35... Kxc6 {[%clk
0:00:06.1]} 36. Be5 {[%clk 0:00:10]} 36... g6 {[%clk 0:00:06.6]} 37. Kf1 {[%clk
0:00:09.7]} 37... Kc5 {[%clk 0:00:07]} 38. Ke2 {[%clk 0:00:09.6]} 38... Kb4
{[%clk 0:00:07.4]} 39. Bg7 {[%clk 0:00:08.7]} 39... h5 {[%clk 0:00:07.4]} 40.
Ke3 {[%clk 0:00:09.2]} 40... Kxa4 {[%clk 0:00:07.9]} 41. Kf4 {[%clk 0:00:09.9]}
41... b5 {[%clk 0:00:08.8]} 42. Kg5 {[%clk 0:00:10.3]} 42... b4 {[%clk
0:00:09.7]} 43. Kxg6 {[%clk 0:00:10.8]} 43... f4 {[%clk 0:00:10.1]} 44. Bd4
{[%clk 0:00:08.7]} 44... b3 {[%clk 0:00:09.9]} 45. Kf5 {[%clk 0:00:09]} 45... e3
{[%clk 0:00:10.4]} 46. fxe3 {[%clk 0:00:05.7]} 46... fxe3 {[%clk 0:00:11.3]} 47.
Bxe3 {[%clk 0:00:03]} 47... b2 {[%clk 0:00:11.2]} 48. Kg5 {[%clk 0:00:03.6]}
48... b1=Q {[%clk 0:00:12.1]} 49. Kxh5 {[%clk 0:00:04.5]} 49... Qe4 {[%clk
0:00:12.3]} 50. Bg5 {[%clk 0:00:03.7]} 50... Qxg2 {[%clk 0:00:12.8]} 51. h4
{[%clk 0:00:04.6]} 51... Kb5 {[%clk 0:00:10.4]} 52. Kg6 {[%clk 0:00:05.5]} 52...
Qe4+ {[%clk 0:00:10.7]} 53. Kf6 {[%clk 0:00:05.7]} 53... Qh7 {[%clk 0:00:09.7]}
54. Ke5 {[%clk 0:00:03.3]} 54... Qh5 {[%clk 0:00:10.2]} 55. Kf4 {[%clk
0:00:04.2]} 55... Kc6 {[%clk 0:00:10.9]} 56. Kg3 {[%clk 0:00:04.7]} 56... Kd7
{[%clk 0:00:11.8]} 57. Kf4 {[%clk 0:00:05.6]} 57... Ke8 {[%clk 0:00:12.7]} 58.
Ke5 {[%clk 0:00:06.5]} 58... Kf7 {[%clk 0:00:13.6]} 59. Kf5 {[%clk 0:00:06.8]}
59... Kg7 {[%clk 0:00:13.8]} 60. Ke5 {[%clk 0:00:07.4]} 60... Kg6 {[%clk
0:00:14.7]} 61. Ke6 {[%clk 0:00:07.8]} 61... Qe2+ {[%clk 0:00:14.7]} 62. Kd5
{[%clk 0:00:08.1]} 62... Kf5 {[%clk 0:00:15.4]} 63. Kd6 {[%clk 0:00:08.8]} 63...
Qe6+ {[%clk 0:00:15]} 64. Kc5 {[%clk 0:00:09.2]} 64... Ke4 {[%clk 0:00:15.5]}
65. Kb5 {[%clk 0:00:09]} 65... Qd5+ {[%clk 0:00:15.2]} 66. Kb4 {[%clk
0:00:09.1]} 66... Qc6 {[%clk 0:00:14.5]} 67. Ka5 {[%clk 0:00:09.3]} 67... Kd5
{[%clk 0:00:14.6]} 68. Kb4 {[%clk 0:00:09.3]} 68... Qc4+ {[%clk 0:00:14.8]} 69.
Ka3 {[%clk 0:00:09.8]} 69... Qb5 {[%clk 0:00:15.3]} 70. Ka2 {[%clk 0:00:06.8]}
70... Kc4 {[%clk 0:00:16.2]} 71. Ka1 {[%clk 0:00:04.7]} 71... Kd3 {[%clk
0:00:17.1]} 0-1

[Event "Early-Titled-Tuesday-Blitz-July-09-2024"]
[Site "Chess.com"]
[Date "2024.07.09"]
[Round "3"]
[White "karinachess1"]
[Black "RedFirePanda"]
[Result "1-0"]
[WhiteElo "2687"]
[BlackElo "2464"]
[TimeControl "180+1"]
[EndTime "8:31:12 PDT"]
[Termination "karinachess1 won by checkmate"]

1. d4 {[%clk 0:03:00.9]} 1... d5 {[%clk 0:03:00.2]} 2. c4 {[%clk 0:03:00.7]}
2... dxc4 {[%clk 0:03:01.1]} 3. Nf3 {[%clk 0:02:58.5]} 3... Nf6 {[%clk
0:03:00.5]} 4. e3 {[%clk 0:02:59]} 4... c6 {[%clk 0:03:00.4]} 5. Bxc4 {[%clk
0:02:59.6]} 5... Nbd7 {[%clk 0:02:55.6]} 6. O-O {[%clk 0:02:55.3]} 6... Nb6
{[%clk 0:02:55.6]} 7. Bb3 {[%clk 0:02:54.8]} 7... Bf5 {[%clk 0:02:55.4]} 8. Nc3
{[%clk 0:02:52.9]} 8... e6 {[%clk 0:02:55.4]} 9. Qe2 {[%clk 0:02:52.4]} 9... Be7
{[%clk 0:02:53.6]} 10. h3 {[%clk 0:02:51.4]} 10... h6 {[%clk 0:02:53.1]} 11. e4
{[%clk 0:02:51.7]} 11... Bh7 {[%clk 0:02:52.7]} 12. Bf4 {[%clk 0:02:46.4]} 12...
O-O {[%clk 0:02:51]} 13. Rad1 {[%clk 0:02:46.4]} 13... Rc8 {[%clk 0:02:40.1]}
14. Rfe1 {[%clk 0:02:35.5]} 14... Qd7 {[%clk 0:02:32.2]} 15. Ne5 {[%clk
0:02:34.1]} 15... Qe8 {[%clk 0:02:32.4]} 16. Bc2 {[%clk 0:02:08.3]} 16... Nbd7
{[%clk 0:02:26.6]} 17. Nc4 {[%clk 0:02:07.3]} 17... Nb6 {[%clk 0:02:22.6]} 18.
Nd6 {[%clk 0:02:06.5]} 18... Bxd6 {[%clk 0:02:05.1]} 19. Bxd6 {[%clk 0:02:07.4]}
19... Qd7 {[%clk 0:02:04.3]} 20. Bxf8 {[%clk 0:02:06.9]} 20... Rxf8 {[%clk
0:02:05.2]} 21. e5 {[%clk 0:02:06.3]} 21... Bxc2 {[%clk 0:02:04.9]} 22. Qxc2
{[%clk 0:02:07.2]} 22... Nfd5 {[%clk 0:02:04.8]} 23. Ne4 {[%clk 0:02:07.4]}
23... Nc8 {[%clk 0:02:00.5]} 24. g3 {[%clk 0:01:58.8]} 24... Rd8 {[%clk
0:02:00.2]} 25. a3 {[%clk 0:01:50.9]} 25... Nde7 {[%clk 0:01:59.6]} 26. Nc5
{[%clk 0:01:48.4]} 26... Qc7 {[%clk 0:01:58.4]} 27. Qe4 {[%clk 0:01:46.8]} 27...
Nb6 {[%clk 0:01:52.1]} 28. Rc1 {[%clk 0:01:43.2]} 28... Nd7 {[%clk 0:01:50.5]}
29. Nd3 {[%clk 0:01:34.3]} 29... Nb6 {[%clk 0:01:49.1]} 30. Red1 {[%clk
0:01:34.5]} 30... Nf5 {[%clk 0:01:48.2]} 31. Nc5 {[%clk 0:01:30.3]} 31... Nd7
{[%clk 0:01:48.2]} 32. b4 {[%clk 0:01:24.3]} 32... Nb6 {[%clk 0:01:44.1]} 33.
Nb3 {[%clk 0:01:14.2]} 33... Qe7 {[%clk 0:01:41.1]} 34. Na5 {[%clk 0:01:06.2]}
34... Rd5 {[%clk 0:01:34.6]} 35. Rc5 {[%clk 0:01:01.7]} 35... Rd7 {[%clk
0:01:22.3]} 36. Rc2 {[%clk 0:00:58.8]} 36... Rd5 {[%clk 0:01:21.2]} 37. Nb3
{[%clk 0:00:55.2]} 37... Qd8 {[%clk 0:01:14.9]} 38. Rcd2 {[%clk 0:00:54.6]}
38... Nc4 {[%clk 0:01:12.7]} 39. Ra2 {[%clk 0:00:54.6]} 39... Nxe5 {[%clk
0:01:08.8]} 40. Kg2 {[%clk 0:00:45.6]} 40... Nc4 {[%clk 0:00:59.5]} 41. a4
{[%clk 0:00:45.8]} 41... a5 {[%clk 0:00:57.5]} 42. bxa5 {[%clk 0:00:42.2]} 42...
Nxa5 {[%clk 0:00:58.4]} 43. Nxa5 {[%clk 0:00:39.7]} 43... Qxa5 {[%clk
0:00:56.8]} 44. Rb2 {[%clk 0:00:36.2]} 44... Qxa4 {[%clk 0:00:51]} 45. Rd3
{[%clk 0:00:18.7]} 45... Nd6 {[%clk 0:00:45.6]} 46. Qf4 {[%clk 0:00:17]} 46...
Qc4 {[%clk 0:00:40.6]} 47. Rbd2 {[%clk 0:00:16.1]} 47... b5 {[%clk 0:00:36.1]}
48. Qe3 {[%clk 0:00:13.8]} 48... b4 {[%clk 0:00:33.9]} 49. Rb3 {[%clk
0:00:11.7]} 49... Nf5 {[%clk 0:00:24.3]} 50. Qd3 {[%clk 0:00:12]} 50... Qxd3
{[%clk 0:00:07.7]} 51. Rdxd3 {[%clk 0:00:12.9]} 51... Nxd4 {[%clk 0:00:06.4]}
52. Rxb4 {[%clk 0:00:12.5]} 52... c5 {[%clk 0:00:06.1]} 53. Rb8+ {[%clk
0:00:12.4]} 53... Kh7 {[%clk 0:00:06.1]} 54. Rc8 {[%clk 0:00:12.9]} 54... Kg6
{[%clk 0:00:04.5]} 55. g4 {[%clk 0:00:12.8]} 55... Kf6 {[%clk 0:00:03.4]} 56. h4
{[%clk 0:00:12.5]} 56... g5 {[%clk 0:00:02.9]} 57. h5 {[%clk 0:00:12.5]} 57...
Ke7 {[%clk 0:00:03]} 58. Rh8 {[%clk 0:00:11.7]} 58... c4 {[%clk 0:00:02.4]} 59.
Rc3 {[%clk 0:00:12.1]} 59... Rc5 {[%clk 0:00:02.5]} 60. Rxh6 {[%clk 0:00:12.2]}
60... Ne2 {[%clk 0:00:03.1]} 61. Rc2 {[%clk 0:00:12.7]} 61... Nd4 {[%clk
0:00:03.7]} 62. Rc3 {[%clk 0:00:11.9]} 62... Nb5 {[%clk 0:00:04.1]} 63. Rc1
{[%clk 0:00:11]} 63... c3 {[%clk 0:00:04.7]} 64. Rh8 {[%clk 0:00:11.3]} 64... c2
{[%clk 0:00:04.8]} 65. Ra8 {[%clk 0:00:10.3]} 65... Nd4 {[%clk 0:00:05.3]} 66.
Ra2 {[%clk 0:00:10.9]} 66... Kf6 {[%clk 0:00:05.1]} 67. Rb2 {[%clk 0:00:10.6]}
67... Ke5 {[%clk 0:00:03.7]} 68. h6 {[%clk 0:00:09.2]} 68... Kf6 {[%clk
0:00:04]} 69. h7 {[%clk 0:00:08.5]} 69... Kg7 {[%clk 0:00:04.2]} 70. Rh1 {[%clk
0:00:09.2]} 70... c1=Q {[%clk 0:00:02.2]} 71. h8=Q+ {[%clk 0:00:09.3]} 71... Kg6
{[%clk 0:00:03]} 72. Rh6# {[%clk 0:00:09.2]} 1-0

[Event "Early-Titled-Tuesday-Blitz-July-09-2024"]
[Site "Chess.com"]
[Date "2024.07.09"]
[Round "3"]
[White "Meri-Arabidze"]
[Black "Happy1712Drummer"]
[Result "1/2-1/2"]
[WhiteElo "2682"]
[BlackElo "2476"]
[TimeControl "180+1"]
[EndTime "8:31:30 PDT"]
[Termination "Game drawn by stalemate"]

1. d4 {[%clk 0:03:00.9]} 1... d5 {[%clk 0:02:56.4]} 2. c4 {[%clk 0:03:01.3]}
2... e6 {[%clk 0:02:54.3]} 3. Nc3 {[%clk 0:03:00.8]} 3... c5 {[%clk 0:02:53.7]}
4. cxd5 {[%clk 0:03:00.5]} 4... cxd4 {[%clk 0:02:52.8]} 5. Qxd4 {[%clk
0:02:59.5]} 5... Nc6 {[%clk 0:02:49.4]} 6. Qd1 {[%clk 0:02:58.6]} 6... exd5
{[%clk 0:02:30.5]} 7. Qxd5 {[%clk 0:02:58.1]} 7... Bd6 {[%clk 0:02:30.4]} 8. Nf3
{[%clk 0:02:55.9]} 8... Nf6 {[%clk 0:02:30.5]} 9. Qd1 {[%clk 0:02:56]} 9... O-O
{[%clk 0:02:31.1]} 10. g3 {[%clk 0:02:55.8]} 10... Bb4 {[%clk 0:02:26.1]} 11.
Qxd8 {[%clk 0:02:49.4]} 11... Rxd8 {[%clk 0:02:27]} 12. Bd2 {[%clk 0:02:49.6]}
12... Bg4 {[%clk 0:02:26.8]} 13. Bg2 {[%clk 0:02:41]} 13... Rac8 {[%clk
0:02:26.9]} 14. a3 {[%clk 0:02:28.7]} 14... Ba5 {[%clk 0:02:27.1]} 15. b4 {[%clk
0:02:18.9]} 15... Bb6 {[%clk 0:02:25.7]} 16. Rd1 {[%clk 0:02:18.7]} 16... Rc7
{[%clk 0:02:22.5]} 17. O-O {[%clk 0:02:15.2]} 17... Bxf3 {[%clk 0:01:50.4]} 18.
Bxf3 {[%clk 0:02:16.1]} 18... Ne5 {[%clk 0:01:50.7]} 19. Kg2 {[%clk 0:00:56.8]}
19... Nxf3 {[%clk 0:01:38.2]} 20. exf3 {[%clk 0:00:56.6]} 20... Rxd2 {[%clk
0:01:32]} 21. Rxd2 {[%clk 0:00:57.5]} 21... Rxc3 {[%clk 0:01:32.3]} 22. a4
{[%clk 0:00:58.2]} 22... g6 {[%clk 0:01:24]} 23. a5 {[%clk 0:00:49.2]} 23... Bc7
{[%clk 0:01:22.9]} 24. Re1 {[%clk 0:00:47.8]} 24... Kf8 {[%clk 0:01:18.1]} 25.
Rd4 {[%clk 0:00:41.5]} 25... b6 {[%clk 0:01:06.9]} 26. Ra1 {[%clk 0:00:29.2]}
26... Rc2 {[%clk 0:00:55.3]} 27. f4 {[%clk 0:00:22.6]} 27... Ng4 {[%clk
0:00:32.2]} 28. Rd7 {[%clk 0:00:22.2]} 28... Rxf2+ {[%clk 0:00:30.5]} 29. Kh3
{[%clk 0:00:10.5]} 29... h5 {[%clk 0:00:28.5]} 30. Kh4 {[%clk 0:00:11.1]} 30...
Rxh2+ {[%clk 0:00:19.9]} 31. Kg5 {[%clk 0:00:11.4]} 31... Rc2 {[%clk 0:00:09.7]}
32. f5 {[%clk 0:00:11.8]} 32... Bxg3 {[%clk 0:00:06.1]} 33. fxg6 {[%clk
0:00:07.5]} 33... fxg6 {[%clk 0:00:06.5]} 34. Rxa7 {[%clk 0:00:05.2]} 34... bxa5
{[%clk 0:00:06.4]} 35. R1xa5 {[%clk 0:00:05.1]} 35... Re2 {[%clk 0:00:05.3]} 36.
Kxg6 {[%clk 0:00:03.8]} 36... h4 {[%clk 0:00:04.5]} 37. Ra8+ {[%clk 0:00:03.5]}
37... Re8 {[%clk 0:00:04.7]} 38. Rxe8+ {[%clk 0:00:03.3]} 38... Kxe8 {[%clk
0:00:05.1]} 39. Ra8+ {[%clk 0:00:03]} 39... Ke7 {[%clk 0:00:05.4]} 40. b5 {[%clk
0:00:03.5]} 40... h3 {[%clk 0:00:05.2]} 41. Rh8 {[%clk 0:00:03.4]} 41... h2
{[%clk 0:00:05.3]} 42. b6 {[%clk 0:00:03.9]} 42... Nf2 {[%clk 0:00:04.2]} 43.
Rh7+ {[%clk 0:00:01.4]} 43... Ke6 {[%clk 0:00:03.9]} 44. b7 {[%clk 0:00:01.3]}
44... h1=Q {[%clk 0:00:03.6]} 45. Rxh1 {[%clk 0:00:01.4]} 45... Nxh1 {[%clk
0:00:04.1]} 46. Kg5 {[%clk 0:00:02.3]} 46... Bb8 {[%clk 0:00:03.8]} 47. Kg4
{[%clk 0:00:03.2]} 47... Nf2+ {[%clk 0:00:04]} 48. Kf3 {[%clk 0:00:03.5]} 48...
Nd3 {[%clk 0:00:04.6]} 49. Ke4 {[%clk 0:00:04.2]} 49... Nc5+ {[%clk 0:00:05.2]}
50. Kd4 {[%clk 0:00:05.1]} 50... Nxb7 {[%clk 0:00:05.4]} 51. Ke4 {[%clk
0:00:06]} 51... Nd6+ {[%clk 0:00:05.9]} 52. Kd4 {[%clk 0:00:06.8]} 52... Ba7+
{[%clk 0:00:06.4]} 53. Kd3 {[%clk 0:00:06.8]} 53... Kd5 {[%clk 0:00:07.1]} 54.
Ke2 {[%clk 0:00:06.7]} 54... Ke4 {[%clk 0:00:06.7]} 55. Kf1 {[%clk 0:00:07]}
55... Be3 {[%clk 0:00:06.6]} 56. Kg2 {[%clk 0:00:07.4]} 56... Kf4 {[%clk
0:00:07.1]} 57. Kh1 {[%clk 0:00:07.7]} 57... Kf3 {[%clk 0:00:05.6]} 58. Kh2
{[%clk 0:00:07.9]} 58... Nf5 {[%clk 0:00:06]} 59. Kh1 {[%clk 0:00:07.2]} 59...
Bf2 {[%clk 0:00:04.9]} 60. Kh2 {[%clk 0:00:07.5]} 60... Kg4 {[%clk 0:00:04]} 61.
Kg2 {[%clk 0:00:07.5]} 61... Bg3 {[%clk 0:00:04.7]} 62. Kh1 {[%clk 0:00:07.6]}
62... Ne3 {[%clk 0:00:04.5]} 63. Kg1 {[%clk 0:00:07.7]} 63... Kf3 {[%clk
0:00:04.4]} 64. Kh1 {[%clk 0:00:08.3]} 64... Bf2 {[%clk 0:00:04.8]} 65. Kh2
{[%clk 0:00:08.6]} 65... Nf5 {[%clk 0:00:04.2]} 66. Kh1 {[%clk 0:00:08.3]} 66...
Bg3 {[%clk 0:00:04]} 67. Kg1 {[%clk 0:00:08.5]} 67... Nh4 {[%clk 0:00:04.4]} 68.
Kh1 {[%clk 0:00:09.2]} 68... Ng6 {[%clk 0:00:03.3]} 69. Kg1 {[%clk 0:00:09.5]}
69... Nf4 {[%clk 0:00:04]} 70. Kh1 {[%clk 0:00:10.4]} 70... Bf2 {[%clk
0:00:02.2]} 71. Kh2 {[%clk 0:00:10.7]} 71... Ne2 {[%clk 0:00:02.1]} 72. Kh1
{[%clk 0:00:11.6]} 72... Ng3+ {[%clk 0:00:02.2]} 73. Kh2 {[%clk 0:00:12.2]}
73... Be3 {[%clk 0:00:02.4]} 74. Kh3 {[%clk 0:00:12.4]} 74... Bg1 {[%clk
0:00:03]} 75. Kh4 {[%clk 0:00:12.6]} 75... Kg2 {[%clk 0:00:02.1]} 76. Kg4 {[%clk
0:00:12.8]} 76... Be3 {[%clk 0:00:02.5]} 77. Kh4 {[%clk 0:00:13]} 77... Kf3
{[%clk 0:00:02.3]} 78. Kh3 {[%clk 0:00:13.4]} 78... Bg1 {[%clk 0:00:02.6]} 79.
Kh4 {[%clk 0:00:13.8]} 79... Nf5+ {[%clk 0:00:02.7]} 80. Kh3 {[%clk 0:00:13.8]}
80... Ne3 {[%clk 0:00:01.5]} 81. Kh4 {[%clk 0:00:14]} 81... Kg2 {[%clk
0:00:01.6]} 82. Kh5 {[%clk 0:00:13.9]} 82... Kg3 {[%clk 0:00:01.9]} 83. Kg5
{[%clk 0:00:14.8]} 83... Bf2 {[%clk 0:00:01.9]} 84. Kh5 {[%clk 0:00:15.7]} 84...
Nf5 {[%clk 0:00:02]} 85. Kg5 {[%clk 0:00:16.6]} 85... Nh4 {[%clk 0:00:02.6]} 86.
Kh5 {[%clk 0:00:17.1]} 86... Be3 {[%clk 0:00:03]} 1/2-1/2

[Event "Early-Titled-Tuesday-Blitz-July-09-2024"]
[Site "Chess.com"]
[Date "2024.07.09"]
[Round "3"]
[White "chessdjw"]
[Black "ACollins05"]
[Result "1-0"]
[WhiteElo "2770"]
[BlackElo "2491"]
[TimeControl "180+1"]
[EndTime "8:31:32 PDT"]
[Termination "chessdjw won by checkmate"]

1. Nf3 {[%clk 0:03:00.9]} 1... b5 {[%clk 0:02:58.4]} 2. e4 {[%clk 0:02:59.7]}
2... a6 {[%clk 0:02:57.6]} 3. d4 {[%clk 0:02:59.5]} 3... Bb7 {[%clk 0:02:58.2]}
4. Bd3 {[%clk 0:03:00.1]} 4... e6 {[%clk 0:02:58.1]} 5. O-O {[%clk 0:03:00.3]}
5... c5 {[%clk 0:02:57.9]} 6. c3 {[%clk 0:02:59.9]} 6... Nf6 {[%clk 0:02:58.5]}
7. Re1 {[%clk 0:02:59.8]} 7... Be7 {[%clk 0:02:58.4]} 8. Nbd2 {[%clk 0:02:52.1]}
8... d6 {[%clk 0:02:58.3]} 9. Nf1 {[%clk 0:02:52.3]} 9... Nbd7 {[%clk
0:02:58.5]} 10. Ng3 {[%clk 0:02:52.8]} 10... O-O {[%clk 0:02:59]} 11. h3 {[%clk
0:02:52.8]} 11... Re8 {[%clk 0:02:58]} 12. a4 {[%clk 0:02:48.4]} 12... c4 {[%clk
0:02:57.6]} 13. Bc2 {[%clk 0:02:48.1]} 13... Qc7 {[%clk 0:02:58.1]} 14. Bf4
{[%clk 0:02:39.9]} 14... Bf8 {[%clk 0:02:56]} 15. e5 {[%clk 0:02:33.8]} 15...
dxe5 {[%clk 0:02:54.3]} 16. dxe5 {[%clk 0:02:33.2]} 16... Bxf3 {[%clk
0:02:45.6]} 17. Qxf3 {[%clk 0:02:32.9]} 17... Nd5 {[%clk 0:02:45.8]} 18. Qe4
{[%clk 0:01:38.9]} 18... g6 {[%clk 0:02:28.7]} 19. Bg5 {[%clk 0:01:34]} 19...
Bg7 {[%clk 0:02:27.8]} 20. f4 {[%clk 0:01:13.7]} 20... Nc5 {[%clk 0:02:22.5]}
21. Qf3 {[%clk 0:01:12.7]} 21... b4 {[%clk 0:02:10.6]} 22. Ne4 {[%clk 0:01:10]}
22... b3 {[%clk 0:01:57.3]} 23. Bb1 {[%clk 0:01:08.8]} 23... Rab8 {[%clk
0:01:38]} 24. Kh1 {[%clk 0:01:06.1]} 24... h6 {[%clk 0:01:31.2]} 25. Bh4 {[%clk
0:01:04.2]} 25... Nxe4 {[%clk 0:01:29.9]} 26. Bxe4 {[%clk 0:01:03.5]} 26... Ne7
{[%clk 0:01:28]} 27. Rad1 {[%clk 0:00:57.1]} 27... Rbd8 {[%clk 0:01:26.7]} 28.
Rxd8 {[%clk 0:00:41.6]} 28... Rxd8 {[%clk 0:01:27.6]} 29. Rd1 {[%clk 0:00:42.2]}
29... Rxd1+ {[%clk 0:01:07.1]} 30. Qxd1 {[%clk 0:00:43.1]} 30... Nf5 {[%clk
0:00:57.3]} 31. Bf2 {[%clk 0:00:28.4]} 31... g5 {[%clk 0:00:55.8]} 32. Bxf5
{[%clk 0:00:10.6]} 32... exf5 {[%clk 0:00:55.6]} 33. Qd5 {[%clk 0:00:11.2]}
33... gxf4 {[%clk 0:00:51.2]} 34. Bd4 {[%clk 0:00:10.9]} 34... Kf8 {[%clk
0:00:43.3]} 35. a5 {[%clk 0:00:07]} 35... Ke8 {[%clk 0:00:40.1]} 36. Qa8+ {[%clk
0:00:06.3]} 36... Ke7 {[%clk 0:00:35.5]} 37. Qxa6 {[%clk 0:00:06.5]} 37... Bxe5
{[%clk 0:00:33.5]} 38. Bxe5 {[%clk 0:00:04.3]} 38... Qxe5 {[%clk 0:00:33.6]} 39.
Qa7+ {[%clk 0:00:04.2]} 39... Kd8 {[%clk 0:00:29.3]} 40. a6 {[%clk 0:00:02.7]}
40... Qe1+ {[%clk 0:00:28.3]} 41. Qg1 {[%clk 0:00:03.1]} 41... Qe5 {[%clk
0:00:20.3]} 42. a7 {[%clk 0:00:03.4]} 42... Qa5 {[%clk 0:00:20.6]} 43. Qd4+
{[%clk 0:00:03.4]} 43... Ke7 {[%clk 0:00:18.8]} 44. Kh2 {[%clk 0:00:02.7]} 44...
f3 {[%clk 0:00:16.6]} 45. gxf3 {[%clk 0:00:02.8]} 45... Qa2 {[%clk 0:00:16.7]}
46. Qe3+ {[%clk 0:00:02.4]} 46... Kf8 {[%clk 0:00:15.6]} 47. Qxh6+ {[%clk
0:00:02.4]} 47... Ke7 {[%clk 0:00:16.3]} 48. Qg5+ {[%clk 0:00:02.7]} 48... Ke6
{[%clk 0:00:16.4]} 49. Qe3+ {[%clk 0:00:02.4]} 49... Kf6 {[%clk 0:00:16.1]} 50.
Qd4+ {[%clk 0:00:02.6]} 50... Kg6 {[%clk 0:00:16.5]} 51. Qd6+ {[%clk 0:00:02]}
51... f6 {[%clk 0:00:15.9]} 52. Qg3+ {[%clk 0:00:02.3]} 52... Kf7 {[%clk
0:00:16.5]} 53. Qf2 {[%clk 0:00:02.9]} 53... Kg6 {[%clk 0:00:16.6]} 54. f4
{[%clk 0:00:03.3]} 54... Kh5 {[%clk 0:00:15.6]} 55. Kg3 {[%clk 0:00:02.3]} 55...
Qa1 {[%clk 0:00:13.7]} 56. Qe2+ {[%clk 0:00:02.5]} 56... Kg6 {[%clk 0:00:13.5]}
57. Qxc4 {[%clk 0:00:02.4]} 57... Qe1+ {[%clk 0:00:11.5]} 58. Kg2 {[%clk
0:00:02.1]} 58... Qd2+ {[%clk 0:00:11.4]} 59. Kf1 {[%clk 0:00:02.5]} 59... Qd1+
{[%clk 0:00:11.7]} 60. Kf2 {[%clk 0:00:02]} 60... Qd2+ {[%clk 0:00:12.2]} 61.
Kf3 {[%clk 0:00:02.6]} 61... Qd1+ {[%clk 0:00:12.7]} 62. Qe2 {[%clk 0:00:03.1]}
62... Qd5+ {[%clk 0:00:13.2]} 63. Kf2 {[%clk 0:00:03.6]} 63... Qc5+ {[%clk
0:00:13.2]} 64. Qe3 {[%clk 0:00:04.2]} 64... Qa5 {[%clk 0:00:12.8]} 65. Qg3+
{[%clk 0:00:04]} 65... Kf7 {[%clk 0:00:12.4]} 66. Qe3 {[%clk 0:00:04.6]} 66...
Qa2 {[%clk 0:00:12]} 67. Kg3 {[%clk 0:00:04.2]} 67... Qa1 {[%clk 0:00:10.9]} 68.
c4 {[%clk 0:00:03.8]} 68... Qa6 {[%clk 0:00:08.4]} 69. h4 {[%clk 0:00:04]} 69...
Qa1 {[%clk 0:00:07.7]} 70. h5 {[%clk 0:00:04.3]} 70... Kg7 {[%clk 0:00:07.4]}
71. Kh2 {[%clk 0:00:03.8]} 71... Kh6 {[%clk 0:00:07.2]} 72. Kh3 {[%clk 0:00:04]}
72... Kxh5 {[%clk 0:00:06.9]} 73. Qf3+ {[%clk 0:00:04.4]} 73... Kg6 {[%clk
0:00:07.1]} 74. a8=Q {[%clk 0:00:05.3]} 74... Qxb2 {[%clk 0:00:02.5]} 75. Qg3+
{[%clk 0:00:05.5]} 75... Kh7 {[%clk 0:00:02.3]} 76. Qag8+ {[%clk 0:00:05]} 76...
Kh6 {[%clk 0:00:03.2]} 77. Qh4# {[%clk 0:00:05.4]} 1-0